lending/lending_fUSD_20240110
["ID","MTS","AMOUNT","RATE_DAILY","PERIOD"]
[311029385,1704875443190,-3208.91479495,0.00023,2]
[311029386,1704875443320,-4103.3305331,0.00023,2]
[311029387,1704875443332,-733.37791373,0.00023,2]
[311029392,1704875445916,-301.36826649,0.00022793,2]
[311029393,1704875445928,-29.93870755,0.00022793,2]
[311029394,1704875445937,-453.41908013,0.00023,2]
[311029395,1704875445948,-1637.4717205,0.00023,2]
[311029396,1704875445981,-602.2036766,0.00022999,2]
[311029397,1704875446039,-467.64978783,0.00022999,2]
[311029398,1704875446048,-3575.73158131,0.00023,2]
[311029399,1704875446128,-18171.96249306,0.00023,2]
[311029400,1704875446227,-1760.36,0.00023,2]
[311029401,1704875446277,-2797.23229667,0.00023,2]
[311029402,1704875446289,-8809.36593697,0.00023,2]
[311029403,1704875446319,-386.82258294,0.00023,2]
[311029406,1704875489599,1849.450508,0.00037152,30]
[311029420,1704875607964,10606.44367801,0.00037152,30]
[311029424,1704875640467,385.24,0.00021315,2]
[311029425,1704875843973,158.08,0.00022687,10]
[311029426,1704875844122,158.08,0.00023428,10]
[311029427,1704875844358,158.08,0.00024169,10]
[311029428,1704875844554,158.08,0.00024911,10]
[311029429,1704875854741,272.34,0.00022488,2]
[311029430,1704875877301,206.4,0.00022488,2]
[311029431,1704876014274,2535.3912,0.00024904,10]
[311029433,1704876117878,159.31,0.00022321,2]
[311029434,1704876122675,418.6,0.00022404,2]
[311029437,1704876175301,365.97,0.00020531,2]
[311029449,1704876235055,169.51,0.00022337,2]
[311029450,1704876296868,11537.0,0.00022347,2]
[311029454,1704876332133,309.92,0.00022348,2]
[311029455,1704876339056,338.32,0.00022485,2]
[311029456,1704876389957,150.0,0.00037208,30]
[311029457,1704876434673,2000.0,0.0002249,2]
[311029478,1704876614439,347.67,0.00020951,2]
[311029514,1704876632179,-457.56,0.00022517,2]
[311029515,1704876632194,-612.29346443,0.00022517,2]
[311029516,1704876632207,-3185.89838635,0.00022517,2]
[311029517,1704876632219,-164.69055572,0.00022518,2]
[311029518,1704876632230,-159.72566062,0.00022692,2]
[311029519,1704876632242,-159.72566061,0.00022734,2]
[311029520,1704876632255,-2907.99094682,0.00022775,2]
[311029521,1704876632266,-159.72566061,0.00022775,2]
[311029522,1704876632278,-1391.14,0.00022792,2]
[311029523,1704876632290,-150.0,0.00022792,2]
[311029524,1704876632301,-1928.01654887,0.00022793,2]
[311029525,1704876632322,-310.78889185,0.00022793,2]
[311029526,1704876632336,-4821.47846119,0.00022793,2]
[311029528,1704876632397,-4571.4,0.00022793,2]
[311029530,1704876632411,-732.84951721,0.00022793,2]
[311029533,1704876632425,-844.8455585,0.00022793,2]
[311030119,1704876638413,-2966.31717567,0.00022793,2]
[311030121,1704876638425,-399.13216622,0.00022793,2]
[311030145,1704876638623,-1704.14943122,0.00022793,2]
[311030148,1704876638647,-27689.17021838,0.00022793,2]
[311030154,1704876638688,-531.80313089,0.00022793,2]
[311030156,1704876638698,-153.08,0.00022812,2]
[311030158,1704876638707,-159.72566061,0.00022817,2]
[311030160,1704876638716,-159.72566061,0.00022858,2]
[311030162,1704876638725,-243.33034789,0.00022898,2]
[311030164,1704876638736,-338.78639007,0.00022898,2]
[311030168,1704876638762,-37888.92516204,0.00022898,2]
[311030170,1704876638771,-1000.0,0.00022898,2]
[311030172,1704876638780,-1387.899,0.00022898,2]
[311030174,1704876638789,-499.99,0.00022898,2]
[311030176,1704876638798,-1000.0,0.000229,2]
[311030178,1704876638807,-179.99129703,0.000229,2]
[311030180,1704876638816,-192.5172558,0.000229,2]
[311030182,1704876638825,-750.6367098,0.000229,2]
[311030184,1704876638834,-1620.21964148,0.000229,2]
[311030186,1704876638843,-293.12449782,0.000229,2]
[311030188,1704876638852,-159.72566061,0.000229,2]
[311030190,1704876638864,-207.0,0.00022938,2]
[311030192,1704876638873,-548.39666702,0.00022998,2]
[311030194,1704876638883,-336.92043028,0.00022998,2]
[311030196,1704876638892,-155.0,0.00022998,2]
[311030197,1704876638901,-264.94143778,0.00022998,2]
[311030200,1704876638911,-148226.18534167,0.00022998,2]
[311030202,1704876638921,-155.60724431,0.00022999,2]
[311030204,1704876638931,-2302.03358731,0.00022999,2]
[311030206,1704876638940,-16367.2096291,0.00022999,2]
[311030208,1704876638950,-688823.6368842,0.00023,2]
[311030210,1704876638959,-3516783.29303592,0.00023,2]
[311030212,1704876638972,-125633.01199209,0.00023,2]
[311030214,1704876638985,-932.39338065,0.00023,2]
[311030216,1704876638994,-150.00000001,0.00023035,2]
[311030218,1704876639004,-500.0,0.00023041,2]
[311030220,1704876639014,-1107.32859071,0.00023081,2]
[311030222,1704876639024,-1468.63367225,0.0002313,2]
[311030224,1704876639034,-728.03,0.00023169,2]
[311030226,1704876639043,-347.67,0.00023215,2]
[311030228,1704876639054,-154.54,0.00023299,2]
[311030230,1704876639064,-338.32,0.00023464,2]
[311030232,1704876639074,-161.14,0.00023632,2]
[311030234,1704876639083,-1620.21964148,0.00023648,2]
[311030236,1704876639092,-161.14,0.00024394,2]
[311030238,1704876639102,-1620.21964148,0.00024397,2]
[311030240,1704876639111,-338.32,0.00024442,2]
[311030242,1704876639121,-161.68,0.00024587,2]
[311030244,1704876639130,-250.0,0.00024658,2]
[311030246,1704876639139,-184.60611876,0.00025,2]
[311030391,1704876640510,-126.3872677,0.00025,2]
[311030393,1704876640519,-277.08285929,0.00025,2]
[311030399,1704876640567,-526.55897703,0.00025,2]
[311030401,1704876640577,-15.27837396,0.00025,2]
[311030665,1704876643144,-263.8829783,0.00025,2]
[311030669,1704876643174,-935.54178621,0.00025,2]
[311030722,1704876643727,-369.49392558,0.00025,2]
[311030724,1704876643737,-350.0,0.00025,3]
[311030726,1704876643746,-309.92,0.00025142,2]
[311030728,1704876643758,-1620.21964148,0.00025145,2]
[311030730,1704876643768,-161.14,0.00025157,2]
[311030732,1704876643778,-206.4,0.000253,2]
[311030735,1704876643788,-338.32,0.00025421,2]
[311030737,1704876643798,-347.67,0.00025479,2]
[311030739,1704876643807,-179.99129703,0.00025644,2]
[311030741,1704876643817,-1620.21964148,0.00025893,2]
[311030743,1704876643826,-150.0,0.00026079,2]
[311030745,1704876643836,-338.32,0.00026399,2]
[311030747,1704876643845,-363.45,0.00026575,2]
[311030749,1704876643855,-3335.14702086,0.00026575,2]
[311030783,1704876644165,-3072.29297914,0.00026575,2]
[311030785,1704876644175,-1620.21964148,0.00026642,2]
[311030787,1704876644184,-161.68,0.00026701,2]
[311030789,1704876644195,-192.5172558,0.00026879,2]
[311030791,1704876644204,-750.63670978,0.00026879,2]
[311030793,1704876644214,-293.12449782,0.00026879,2]
[311030795,1704876644223,-400.0,0.00027,3]
[311030797,1704876644233,-153.08,0.00027104,2]
[311030799,1704876644242,-939.46,0.00027349,2]
[311030801,1704876644251,-338.32,0.00027378,2]
[311030803,1704876644261,-1620.21964148,0.0002739,2]
[311030806,1704876644270,-250.0,0.00027397,2]
[311030808,1704876644280,-362.91908517,0.000275,4]
[311030810,1704876644289,-347.67,0.00027743,2]
[311030812,1704876644298,-309.92,0.00027936,2]
[311030814,1704876644308,-206.4,0.00028111,2]
[311030816,1704876644317,-1620.21964148,0.00028139,2]
[311030818,1704876644326,-207.0,0.00028233,10]
[311030820,1704876644335,-939.46,0.00028309,2]
[311030822,1704876644345,-939.46,0.00028309,2]
[311030824,1704876644354,-1185.24,0.00028309,2]
[311030826,1704876644365,-338.32,0.00028356,2]
[311030828,1704876644374,-179.99129703,0.00028388,4]
[311030830,1704876644383,-1872.64,0.00028493,2]
[311030832,1704876644393,-150.0,0.00028767,2]
[311030834,1704876644402,-407.37,0.00028767,2]
[311030836,1704876644412,-311.09,0.00028767,2]
[311030838,1704876644422,-151.88,0.00028767,2]
[311030840,1704876644431,-301.16,0.0002878,2]
[311030843,1704876644441,-36007.09875931,0.00029,15]
[311030845,1704876644450,-99760.51773502,0.00029,3]
[311030847,1704876644459,-450.0,0.00029,3]
[311030849,1704876644469,-3886.0,0.000292,2]
[311030851,1704876644479,-41666.0,0.000292,2]
[311030853,1704876644489,-462.90586429,0.00029231,2]
[311030855,1704876644498,-338.32,0.00029334,2]
[311030857,1704876644508,-400.99457651,0.00029497,2]
[311030859,1704876644518,-433.52,0.00029568,2]
[311030861,1704876644527,-1028.0,0.00029568,2]
[311030863,1704876644537,-183.0,0.00029605,2]
[311030865,1704876644547,-368.9,0.00029712,2]
[311030867,1704876644558,-82121.02294567,0.00029785,7]
[311030870,1704876644571,-13710.0,0.00029785,7]
[311030880,1704876644661,-20983.40640005,0.00029785,7]
[311030882,1704876644673,-343.48237838,0.00029785,7]
[311030885,1704876644685,-908.2369242,0.00029785,7]
[311030887,1704876644696,-350.225,0.00029785,7]
[311030889,1704876644708,-18045.15143865,0.00029785,7]
[311030962,1704876646096,-939.46,0.00027349,2]
[311030964,1704876646106,-249.71472392,0.00029785,7]
[311030966,1704876646119,-3191.47582479,0.00029785,7]
[311030970,1704876646147,-676.8344081,0.00029785,7]
[311030978,1704876646207,-899.17198034,0.00029785,7]
[311030980,1704876646219,-22851.0,0.00029785,7]
[311030992,1704876646322,-3235.55708281,0.00029785,7]
[311030995,1704876646334,-26979.88629355,0.00029785,7]
[311030997,1704876646346,-3850.36506254,0.00029785,7]
[311031003,1704876646397,-874.89965158,0.00029785,7]
[311031005,1704876646409,-346.60196263,0.00029785,7]
[311031008,1704876646421,-382.96792279,0.00029785,7]
[311031010,1704876646430,-5465.83340067,0.000298,2]
[311031012,1704876646439,-689.48708914,0.000298,2]
[311031015,1704876646462,-1618.25532857,0.000298,2]
[311031475,1704876788898,157.04050748,0.00020608,2]
[311031476,1704876795928,151.4011,0.00022251,2]
[311031477,1704876797201,151.4011,0.00022251,2]
[311031478,1704876797966,151.4011,0.00022251,2]
[311031479,1704876798742,151.4011,0.00022251,2]
[311031480,1704876799484,151.4011,0.00022251,2]
[311031481,1704876800201,151.4011,0.00022251,2]
[311031482,1704876800897,151.4011,0.00022251,2]
[311031483,1704876801771,151.4011,0.00022251,2]
[311031484,1704876802406,151.4011,0.00022251,2]
[311031485,1704876803185,151.4011,0.00022251,2]
[311031486,1704876803955,151.4011,0.00022251,2]
[311031487,1704876805137,151.4011,0.00022251,2]
[311031488,1704876805439,151.4011,0.00022251,2]
[311031489,1704876805983,151.4011,0.00022251,2]
[311031490,1704876806719,151.4011,0.00022251,2]
[311031491,1704876807436,151.4011,0.00022251,2]
[311031492,1704876808265,155.0,0.00020608,2]
[311031493,1704876808841,151.4011,0.00022251,2]
[311031494,1704876809581,151.4011,0.00022251,2]
[311031495,1704876810270,151.4011,0.00022251,2]
[311031496,1704876810988,151.4011,0.00022251,2]
[311031497,1704876811682,151.4011,0.00022251,2]
[311031498,1704876812272,155.0,0.00020608,2]
[311031499,1704876812430,151.4011,0.00022251,2]
[311031500,1704876812941,151.4011,0.00022251,2]
[311031501,1704876813063,151.4011,0.00022251,2]
[311031502,1704876813223,234.60743035,0.00020608,2]
[311031503,1704876813834,151.4011,0.00022251,2]
[311031504,1704876814504,151.4011,0.00022251,2]
[311031505,1704876815747,151.4011,0.00022251,2]
[311031506,1704876816106,151.4011,0.00022251,2]
[311031507,1704876816617,151.4011,0.00022251,2]
[311031508,1704876817328,151.4011,0.00022251,2]
[311031509,1704876818006,151.4011,0.00022251,2]
[311031510,1704876818703,151.4011,0.00022251,2]
[311031511,1704876819359,105.51686217,0.00022251,2]
[311031512,1704876819384,45.88423783,0.00022251,2]
[311031513,1704876820037,151.4011,0.00022251,2]
[311031514,1704876820649,151.4011,0.00022251,2]
[311031515,1704876821326,151.4011,0.00022251,2]
[311031516,1704876822016,151.4011,0.00022251,2]
[311031517,1704876822701,151.4011,0.00022251,2]
[311031518,1704876823324,151.4011,0.00022251,2]
[311031519,1704876823843,155.0,0.00020608,2]
[311031520,1704876824014,151.4011,0.00022251,2]
[311031521,1704876824748,151.4011,0.00022251,2]
[311031522,1704876825451,151.4011,0.00022251,2]
[311031523,1704876827073,212.1575122,0.00020608,2]
[311031524,1704876827141,151.4011,0.00022251,2]
[311031525,1704876827366,151.4011,0.00022251,2]
[311031526,1704876827650,234.60743035,0.00020608,2]
[311031527,1704876827740,151.4011,0.00022251,2]
[311031528,1704876828226,151.4011,0.00022251,2]
[311031529,1704876828905,151.4011,0.00022251,2]
[311031530,1704876829614,151.4011,0.00022251,2]
[311031531,1704876830294,151.4011,0.00022251,2]
[311031532,1704876831193,151.4011,0.00022251,2]
[311031533,1704876831684,151.4011,0.00022251,2]
[311031534,1704876832402,151.4011,0.00022251,2]
[311031535,1704876833139,143.36352027,0.00022251,2]
[311031536,1704876833166,8.03757973,0.00022251,2]
[311031537,1704876833847,151.4011,0.00022251,2]
[311031538,1704876834144,155.0,0.00020607,2]
[311031539,1704876834524,151.4011,0.00022251,2]
[311031540,1704876834778,161.52008593,0.00020607,2]
[311031541,1704876835241,151.4011,0.00022251,2]
[311031542,1704876835914,151.4011,0.00022251,2]
[311031543,1704876836581,151.4011,0.00022251,2]
[311031544,1704876837936,151.4011,0.00022251,2]
[311031545,1704876838190,151.4011,0.00022251,2]
[311031546,1704876838662,151.4011,0.00022251,2]
[311031547,1704876839333,151.4011,0.00022251,2]
[311031548,1704876839850,225.5216828,0.00020608,2]
[311031549,1704876840068,151.4011,0.00022251,2]
[311031550,1704876840727,151.4011,0.00022251,2]
[311031551,1704876841479,151.4011,0.00022251,2]
[311031552,1704876842190,151.4011,0.00022251,2]
[311031553,1704876842870,151.4011,0.00022251,2]
[311031554,1704876843544,151.4011,0.00022251,2]
[311031555,1704876844241,151.4011,0.00022251,2]
[311031556,1704876845225,234.60743035,0.00020608,2]
[311031557,1704876845629,151.4011,0.00022251,2]
[311031558,1704876846374,151.4011,0.00022251,2]
[311031559,1704876846462,151.4011,0.00022251,2]
[311031560,1704876847026,151.4011,0.00022251,2]
[311031561,1704876848354,151.4011,0.00022251,2]
[311031562,1704876848677,151.4011,0.00022251,2]
[311031563,1704876848823,728.03025837,0.00022,12]
[311031564,1704876849089,151.4011,0.00022251,2]
[311031565,1704876849823,151.4011,0.00022251,2]
[311031566,1704876850845,151.4011,0.00022251,2]
[311031567,1704876851180,151.4011,0.00022251,2]
[311031568,1704876851890,151.4011,0.00022251,2]
[311031569,1704876852534,151.4011,0.00022251,2]
[311031570,1704876853182,151.4011,0.00022251,2]
[311031571,1704876853830,151.4011,0.00022251,2]
[311031572,1704876853859,15014.32477462,0.00012,30]
[311031573,1704876854455,151.4011,0.00022251,2]
[311031574,1704876855178,151.4011,0.00022251,2]
[311031576,1704876855973,151.4011,0.00022251,2]
[311031577,1704876856679,151.4011,0.00022251,2]
[311031578,1704876857389,151.4011,0.00022251,2]
[311031579,1704876858100,151.4011,0.00022251,2]
[311031580,1704876859312,151.4011,0.00022251,2]
[311031581,1704876859671,151.4011,0.00022251,2]
[311031582,1704876860369,151.4011,0.00022251,2]
[311031583,1704876861094,151.4011,0.00022251,2]
[311031584,1704876861886,151.4011,0.00022251,2]
[311031585,1704876862786,151.4011,0.00022251,2]
[311031587,1704876863591,151.4011,0.00022251,2]
[311031588,1704876864279,151.4011,0.00022251,2]
[311031589,1704876865043,65.76960214,0.00022251,2]
[311031590,1704876865071,85.63149786,0.00022251,2]
[311031591,1704876865572,151.4011,0.00022251,2]
[311031592,1704876866249,151.4011,0.00022251,2]
[311031593,1704876866350,359.69487073,0.00025,7]
[311031594,1704876867183,151.4011,0.00022251,2]
[311031595,1704876868689,151.4011,0.00022251,2]
[311031596,1704876869100,151.4011,0.00022251,2]
[311031597,1704876869909,151.4011,0.00022251,2]
[311031598,1704876870131,151.4011,0.00022251,2]
[311031599,1704876870632,151.4011,0.00022251,2]
[311031600,1704876871226,234.60743035,0.00020608,2]
[311031601,1704876871267,151.4011,0.00022251,2]
[311031602,1704876871938,151.4011,0.00022251,2]
[311031603,1704876872587,151.4011,0.00022251,2]
[311031604,1704876873141,151.4011,0.00022251,2]
[311031605,1704876873858,151.4011,0.00022251,2]
[311031606,1704876874697,151.4011,0.00022251,2]
[311031607,1704876875221,151.4011,0.00022251,2]
[311031608,1704876875846,151.4011,0.00022251,2]
[311031609,1704876876511,151.4011,0.00022251,2]
[311031610,1704876877158,151.4011,0.00022251,2]
[311031611,1704876877850,151.4011,0.00022251,2]
[311031612,1704876878488,151.4011,0.00022251,2]
[311031613,1704876879175,151.4011,0.00022251,2]
[311031614,1704876879832,151.4011,0.00022251,2]
[311031615,1704876881220,151.4011,0.00022251,2]
[311031616,1704876881508,151.4011,0.00022251,2]
[311031617,1704876881925,151.4011,0.00022251,2]
[311031618,1704876882592,151.4011,0.00022251,2]
[311031619,1704876883224,151.4011,0.00022251,2]
[311031620,1704876883885,151.4011,0.00022251,2]
[311031621,1704876884545,151.4011,0.00022251,2]
[311031622,1704876885265,151.4011,0.00022251,2]
[311031623,1704876886048,151.4011,0.00022251,2]
[311031624,1704876886476,151.4011,0.00022251,2]
[311031625,1704876887162,151.4011,0.00022251,2]
[311031626,1704876887804,151.4011,0.00022251,2]
[311031627,1704876887987,234.60743035,0.00022251,2]
[311031628,1704876888431,151.4011,0.00022251,2]
[311031629,1704876889103,151.4011,0.00022251,2]
[311031630,1704876889718,151.4011,0.00022251,2]
[311031631,1704876890267,151.4011,0.00022251,2]
[311031632,1704876890923,151.4011,0.00022251,2]
[311031633,1704876891802,151.4011,0.00022251,2]
[311031634,1704876892173,151.4011,0.00022251,2]
[311031635,1704876893123,151.4011,0.00022251,2]
[311031636,1704876893459,151.4011,0.00022251,2]
[311031637,1704876894004,151.4011,0.00022251,2]
[311031638,1704876894575,151.4011,0.00022251,2]
[311031639,1704876895196,144.20892239,0.00022251,2]
[311031640,1704876895220,7.19217761,0.00022251,2]
[311031641,1704876895793,151.4011,0.00022251,2]
[311031642,1704876896437,151.4011,0.00022251,2]
[311031643,1704876897017,151.4011,0.00022251,2]
[311031644,1704876897581,151.4011,0.00022251,2]
[311031645,1704876898152,151.4011,0.00022251,2]
[311031646,1704876898814,151.4011,0.00022251,2]
[311031647,1704876899721,151.4011,0.00022251,2]
[311031648,1704876899908,151.4011,0.00022251,2]
[311031649,1704876900532,151.4011,0.00022251,2]
[311031650,1704876901022,151.4011,0.00022251,2]
[311031651,1704876902559,151.4011,0.00022251,2]
[311031652,1704876902634,151.4011,0.00022251,2]
[311031653,1704876902793,151.4011,0.00022251,2]
[311031654,1704876903323,151.4011,0.00022251,2]
[311031655,1704876903870,151.4011,0.00022251,2]
[311031656,1704876904451,151.4011,0.00022251,2]
[311031657,1704876908312,151.4011,0.00022251,2]
[311031658,1704876909140,151.4011,0.00022251,2]
[311031659,1704876909796,151.4011,0.00022251,2]
[311031660,1704876919451,3376.8795,0.00037153,30]
[311031661,1704876934200,206.0,0.00021938,2]
[311031663,1704877082876,175.3,0.00018032,2]
[311031664,1704877104886,176.01,0.00022,2]
[311031665,1704877111029,90776.99466201,0.00037153,30]
[311031667,1704877136227,167415.77,0.00037153,30]
[311031668,1704877159292,60178.58883942,0.00037153,30]
[311031669,1704877164165,151.86265175,0.00022,2]
[311031670,1704877178326,299.99,0.00022797,7]
[311031672,1704877188123,195.09,0.00022397,2]
[311031673,1704877204515,205.0,0.00021938,2]
[311031675,1704877231866,242.48,0.00022094,2]
[311031676,1704877254904,170.77,0.00022037,2]
[311031677,1704877255438,172.58,0.00022037,2]
[311031678,1704877303855,674.27,0.00021882,2]
[311031679,1704877306985,183.2,0.00021882,2]
[311031680,1704877320274,2112.3145,0.00022441,2]
[311031681,1704877326377,1958.6679,0.00022441,2]
[311031682,1704877332757,182.81,0.00021796,2]
[311031683,1704877342399,205.5773,0.00022441,2]
[311031684,1704877357193,2802.1811,0.00022442,2]
[311031685,1704877370619,184.88,0.00021959,2]
[311031686,1704877370831,184.88,0.0002202,2]
[311031687,1704877371032,184.88,0.0002208,2]
[311031688,1704877371234,184.88,0.0002214,2]
[311031689,1704877371437,184.88,0.000222,2]
[311031690,1704877371652,184.88,0.0002226,2]
[311031691,1704877371883,184.88,0.00022321,2]
[311031692,1704877372069,184.88,0.00022381,2]
[311031693,1704877372287,184.88,0.00022441,2]
[311031694,1704877372519,184.88,0.00022501,2]
[311031696,1704877446054,177.45,0.00021719,2]
[311031697,1704877446263,177.45,0.00022262,2]
[311031698,1704877448514,250.7665,0.00022441,2]
[311031699,1704877477591,500.0,0.0002168,2]
[311031700,1704877479598,169.7794,0.00022441,2]
[311031701,1704877487295,167.12,0.00021711,2]
[311031702,1704877492412,200.0,0.00021719,2]
[311031703,1704877511589,335.97,0.00019797,2]
[311031704,1704877511804,335.97,0.00022061,2]
[311031705,1704877512217,241.3,0.00021715,2]
[311031706,1704877515795,175.3,0.00017372,2]
[311031707,1704877517574,3765.46627895,0.00037161,30]
[311031708,1704877537496,364.5612,0.00022441,2]
[311031709,1704877545119,161.16455147,0.00022414,2]
[311031710,1704877550077,81.51754853,0.00022458,2]
[311031711,1704877550110,79.64700292,0.00022458,2]
[311031743,1704877563760,163.7029504,0.00022501,2]
[311031744,1704877568816,249.90424691,0.00022501,2]
[311031745,1704877575772,220.70699301,0.00022501,2]
[311031746,1704877576652,196.62103059,0.00022501,2]
[311031747,1704877577953,248.37048046,0.00022501,2]
[311031748,1704877585347,217.62206916,0.00022501,2]
[311031749,1704877587351,160.39659426,0.00022501,2]
[311031750,1704877593107,244.54353318,0.00022501,2]
[311031751,1704877594407,275.86,0.00021641,2]
[311031753,1704877612996,417.43921408,0.00022501,2]
[311031754,1704877613053,309.66332134,0.00022501,2]
[311031755,1704877615956,161.51672734,0.00022501,2]
[311031756,1704877623733,1069.85346443,0.00022501,2]
[311031795,1704877634809,23.15432565,0.00022502,2]
[311031796,1704877634834,3005.11860466,0.00022502,2]
[311031797,1704877640256,5026.95907843,0.00022441,2]
[311031798,1704877640281,2477.19792157,0.00022441,2]
[311031832,1704877645760,5554.87976152,0.00022502,2]
[311031834,1704877645784,873.57631066,0.00022502,2]
[311031907,1704877647298,1887.26460822,0.00022502,2]
[311032022,1704877664089,150.0,0.00022,2]
[311032023,1704877665846,217.62206916,0.00022501,2]
[311032024,1704877669622,244.54353318,0.00022501,2]
[311032025,1704877671717,4659.07116187,0.00022502,2]
[311032026,1704877671741,5849.62986478,0.00022502,2]
[311032027,1704877671949,2182.44781831,0.00022502,2]
[311032028,1704877671973,2298.18951617,0.00022502,2]
[311032029,1704877672490,226.31,0.00021719,2]
[311032030,1704877685972,2942.76782523,0.00022502,2]
[311032031,1704877698246,1069.85346443,0.00022501,2]
[311032032,1704877718267,1494.95687726,0.00022502,2]
[311032033,1704877719515,164.37,0.00021743,2]
[311032034,1704877726149,16739.78735962,0.00022501,2]
[311032035,1704877729141,2897.2003274,0.00022501,2]
[311032036,1704877731584,3185.89838635,0.00022501,2]
[311032037,1704877732911,176.01,0.00022,2]
[311032038,1704877733086,178.81,0.00021707,2]
[311032039,1704877749595,1126.77899773,0.00021637,2]
[311032040,1704877764017,600.0,0.00022441,2]
[311032041,1704877772765,1069.85346443,0.00022501,2]
[311032044,1704877788919,2500.0,0.00022441,2]
[311032045,1704877799081,1069.9171,0.00022437,2]
[311032046,1704877807643,195.31,0.00022441,2]
[311032086,1704877832211,-150.0,0.00022502,2]
[311032087,1704877832221,-161.16455145,0.00022502,2]
[311032088,1704877832230,-88.03774965,0.00022536,2]
[311032089,1704877832242,-558.52308031,0.00022536,2]
[311032090,1704877832255,-1845.0,0.00022536,2]
[311032091,1704877832266,-576.32490571,0.00022536,2]
[311032092,1704877832286,-521.42671288,0.00022536,2]
[311032093,1704877832297,-2839.14362363,0.00022536,2]
[311032094,1704877832307,-150.0,0.00022536,2]
[311032095,1704877832316,-1662.2663938,0.00022537,2]
[311032096,1704877832339,-2016.54721194,0.00022537,2]
[311032097,1704877832350,-1144.1255306,0.00022537,2]
[311032098,1704877832363,-2574.04524832,0.00022537,2]
[311032099,1704877832476,-567.0516138,0.00022537,2]
[311032100,1704877832487,-9103.899,0.00022537,2]
[311032101,1704877832522,-250.0,0.00022537,2]
[311032183,1704877833188,-1100.0,0.00022537,2]
[311032207,1704877838198,-1490.23892715,0.00022537,2]
[311032208,1704877838375,-1704.77468899,0.00022537,2]
[311032209,1704877838387,-2717.5025484,0.00022537,2]
[311032210,1704877838431,-2362.49594596,0.00022537,2]
[311032211,1704877838490,-1545.65765253,0.00022537,2]
[311032212,1704877838549,-1054.76571516,0.00022537,2]
[311032213,1704877838560,-2647.01567041,0.00022537,2]
[311032214,1704877838571,-33977.14990256,0.00022537,2]
[311032215,1704877838580,-2797.69436332,0.00022537,2]
[311032216,1704877838590,-5796.17233099,0.00022538,2]
[311032217,1704877838598,-163.66921275,0.00022539,2]
[311032218,1704877838608,-250.5942067,0.00022539,2]
[311032219,1704877838617,-201.86678135,0.00022539,2]
[311032220,1704877838626,-248.37048046,0.00022539,2]
[311032221,1704877838636,-196.52875199,0.00022539,2]
[311032222,1704877838645,-270.95612566,0.00022539,2]
[311032223,1704877838654,-206.8633479,0.00022539,2]
[311032224,1704877838663,-254.90484351,0.00022539,2]
[311032225,1704877838672,-161.23944707,0.00022539,2]
[311032226,1704877838681,-473.97538894,0.00022539,2]
[311032227,1704877838690,-687.23183511,0.00022539,2]
[311032228,1704877838700,-526.7122659,0.00022539,2]
[311032229,1704877838709,-291.33889467,0.00022539,2]
[311032230,1704877838718,-244.37624474,0.00022539,2]
[311032231,1704877838727,-3915.41297988,0.00022539,2]
[311032232,1704877838737,-4469.62538806,0.00022539,2]